[Event "November 21 Early 2023"]
[Site "https://www.chess.com"]
[Date "2023.11.21"]
[Round "8"]
[White "Tatarinov, Dmitry"]
[Black "Deng, Henry"]
[Result "1-0"]
[Board "62"]
[TimeControl "180+1"]
[WhiteFideId "24160067"]
[BlackFideId "30965454"]
[WhiteElo "2344"]
[BlackElo "2552"]
[WhiteTeam "RUS"]
[BlackTeam "USA"]
[WhiteClock "0:00:47"]
[BlackClock "0:00:16"]

1. d4 {[%clk 0:02:59]}  d5 {[%clk 0:02:59]} 2. c4 {[%clk 0:02:57]}  c6 {[%clk 0:02:59]} 3. Nc3 {[%clk 0:02:58]}  Nf6 {[%clk 0:02:58]} 4. Nf3 {[%clk 0:02:58]}  e6 {[%clk 0:02:58]} 5. Bg5 {[%clk 0:02:58]}  Be7 {[%clk 0:02:57]} 6. e3 {[%clk 0:02:56]}  O-O {[%clk 0:02:57]} 7. Qc2 {[%clk 0:02:55]}  h6 {[%clk 0:02:56]} 8. Bh4 {[%clk 0:02:54]}  Nbd7 {[%clk 0:02:44]} 9. Rd1 {[%clk 0:02:52]}  dxc4 {[%clk 0:02:30]} 10. Bxc4 {[%clk 0:02:52]}  Nd5 {[%clk 0:02:19]} 11. Bg3 {[%clk 0:02:49]}  b5 {[%clk 0:01:51]} 12. Nxd5 {[%clk 0:02:33]}  cxd5 {[%clk 0:01:46]} 13. Bd3 {[%clk 0:02:26]}  Qa5+ {[%clk 0:01:32]} 14. Nd2 {[%clk 0:02:26]}  Bb7 {[%clk 0:01:28]} 15. Qb1 {[%clk 0:02:20]}  Rac8 {[%clk 0:01:25]} 16. O-O {[%clk 0:02:20]}  b4 {[%clk 0:01:22]} 17. Nb3 {[%clk 0:02:12]}  Qb6 {[%clk 0:01:20]} 18. e4 {[%clk 0:02:05]}  dxe4 {[%clk 0:01:18]} 19. Bxe4 {[%clk 0:02:05]}  Bxe4 {[%clk 0:01:18]} 20. Qxe4 {[%clk 0:02:06]}  Nf6 {[%clk 0:01:19]} 21. Qd3 {[%clk 0:01:59]}  Nd5 {[%clk 0:01:14]} 22. Rfe1 {[%clk 0:01:55]}  Rfd8 {[%clk 0:01:11]} 23. Nd2 {[%clk 0:01:48]}  Qc6 {[%clk 0:01:06]} 24. Be5 {[%clk 0:01:34]}  Bf6 {[%clk 0:01:03]} 25. Bxf6 {[%clk 0:01:30]}  Nxf6 {[%clk 0:01:02]} 26. h3 {[%clk 0:01:28]}  Qc2 {[%clk 0:01:00]} 27. Qb3 {[%clk 0:01:25]}  Qxb3 {[%clk 0:00:58]} 28. Nxb3 {[%clk 0:01:24]}  Rc2 {[%clk 0:00:57]} 29. Rb1 {[%clk 0:01:20]}  Rdc8 {[%clk 0:00:49]} 30. g3 {[%clk 0:01:17]}  Nd5 {[%clk 0:00:44]} 31. h4 {[%clk 0:01:16]}  Kf8 {[%clk 0:00:42]} 32. Kf1 {[%clk 0:01:16]}  Ke7 {[%clk 0:00:39]} 33. Rec1 {[%clk 0:01:16]}  Kd6 {[%clk 0:00:37]} 34. Nc5 {[%clk 0:01:12]}  Rxc1+ {[%clk 0:00:34]} 35. Rxc1 {[%clk 0:01:13]}  Ke7 {[%clk 0:00:33]} 36. Ke2 {[%clk 0:01:12]}  Nb6 {[%clk 0:00:29]} 37. Kd3 {[%clk 0:01:12]}  Rd8 {[%clk 0:00:29]} 38. Ke4 {[%clk 0:01:09]}  Rc8 {[%clk 0:00:27]} 39. Ra1 {[%clk 0:01:07]}  Nc4 {[%clk 0:00:22]} 40. a3 {[%clk 0:01:00]}  bxa3 {[%clk 0:00:19]} 41. b3 {[%clk 0:00:59]}  Nd6+ {[%clk 0:00:19]} 42. Kd3 {[%clk 0:00:59]}  Rd8 {[%clk 0:00:18]} 43. Rxa3 {[%clk 0:00:49]}  Nb5 {[%clk 0:00:18]} 44. Ra5 {[%clk 0:00:49]}  e5 {[%clk 0:00:19]} 45. Rxb5 {[%clk 0:00:48]}  Rxd4+ {[%clk 0:00:19]} 46. Ke3 {[%clk 0:00:48]}  Rd5 {[%clk 0:00:16]} 47. Rb7+ {[%clk 0:00:47]} 1-0

[Event "November 21 Early 2023"]
[Site "https://www.chess.com"]
[Date "2023.11.21"]
[Round "8"]
[White "Pinto, Daniel"]
[Black "Sattarov, Bobir"]
[Result "1/2-1/2"]
[Board "70"]
[TimeControl "180+1"]
[WhiteFideId "3303144"]
[BlackFideId "14203081"]
[WhiteElo "2149"]
[BlackElo "2351"]
[WhiteTeam "BOL"]
[BlackTeam "UZB"]
[WhiteClock "0:00:07"]
[BlackClock "0:00:41"]

1. e4 {[%clk 0:03:00]}  e5 {[%clk 0:02:59]} 2. Nf3 {[%clk 0:03:00]}  Nc6 {[%clk 0:02:58]} 3. Bb5 {[%clk 0:03:00]}  a6 {[%clk 0:02:58]} 4. Ba4 {[%clk 0:02:59]}  Bc5 {[%clk 0:02:58]} 5. O-O {[%clk 0:02:59]}  Qf6 {[%clk 0:02:59]} 6. d3 {[%clk 0:02:51]}  h6 {[%clk 0:02:57]} 7. Nc3 {[%clk 0:02:31]}  Nge7 {[%clk 0:02:57]} 8. Nd5 {[%clk 0:02:23]}  Nxd5 {[%clk 0:02:56]} 9. exd5 {[%clk 0:02:24]}  Ne7 {[%clk 0:02:57]} 10. Bb3 {[%clk 0:02:19]}  O-O {[%clk 0:02:56]} 11. Be3 {[%clk 0:02:10]}  Ba7 {[%clk 0:02:56]} 12. c4 {[%clk 0:01:42]}  d6 {[%clk 0:02:55]} 13. d4 {[%clk 0:01:15]}  Bg4 {[%clk 0:02:40]} 14. dxe5 {[%clk 0:01:11]}  dxe5 {[%clk 0:02:40]} 15. h3 {[%clk 0:00:40]}  Bxf3 {[%clk 0:02:36]} 16. Qxf3 {[%clk 0:00:41]}  Qxf3 {[%clk 0:02:36]} 17. gxf3 {[%clk 0:00:42]}  Nf5 {[%clk 0:02:37]} 18. Bc2 {[%clk 0:00:19]}  Nxe3 {[%clk 0:02:26]} 19. fxe3 {[%clk 0:00:19]}  Bxe3+ {[%clk 0:02:27]} 20. Kg2 {[%clk 0:00:17]}  a5 {[%clk 0:02:21]} 21. Rae1 {[%clk 0:00:12]}  Bd4 {[%clk 0:02:21]} 22. f4 {[%clk 0:00:12]}  exf4 {[%clk 0:02:15]} 23. Rxf4 {[%clk 0:00:13]}  Bxb2 {[%clk 0:02:15]} 24. Rb1 {[%clk 0:00:13]}  Be5 {[%clk 0:01:54]} 25. Re4 {[%clk 0:00:13]}  Bd6 {[%clk 0:01:54]} 26. Rxb7 {[%clk 0:00:13]}  Rfe8 {[%clk 0:01:55]} 27. Rb5 {[%clk 0:00:07]}  Rxe4 {[%clk 0:01:50]} 28. Bxe4 {[%clk 0:00:07]}  Re8 {[%clk 0:01:42]} 29. Bf3 {[%clk 0:00:07]}  Bb4 {[%clk 0:01:29]} 30. a3 {[%clk 0:00:05]}  Bd2 {[%clk 0:01:13]} 31. c5 {[%clk 0:00:05]}  Re3 {[%clk 0:01:08]} 32. d6 {[%clk 0:00:04]}  cxd6 {[%clk 0:01:09]} 33. cxd6 {[%clk 0:00:04]}  Rd3 {[%clk 0:01:08]} 34. Rd5 {[%clk 0:00:04]}  Rxd5 {[%clk 0:00:58]} 35. Bxd5 {[%clk 0:00:05]}  Kf8 {[%clk 0:00:55]} 36. d7 {[%clk 0:00:05]}  Bg5 {[%clk 0:00:54]} 37. Bc6 {[%clk 0:00:05]}  Ke7 {[%clk 0:00:54]} 38. Kf3 {[%clk 0:00:05]}  Bc1 {[%clk 0:00:53]} 39. a4 {[%clk 0:00:05]}  g6 {[%clk 0:00:52]} 40. Bd5 {[%clk 0:00:05]}  f5 {[%clk 0:00:52]} 41. Bf7 {[%clk 0:00:06]}  g5 {[%clk 0:00:47]} 42. Bg6 {[%clk 0:00:06]}  Kxd7 {[%clk 0:00:40]} 43. Bxf5+ {[%clk 0:00:06]}  Kd6 {[%clk 0:00:40]} 44. Bd3 {[%clk 0:00:06]}  Ke5 {[%clk 0:00:35]} 45. Kg4 {[%clk 0:00:04]}  Kd4 {[%clk 0:00:34]} 46. Bb5 {[%clk 0:00:04]}  Kc5 {[%clk 0:00:34]} 47. Be8 {[%clk 0:00:05]}  Kd6 {[%clk 0:00:35]} 48. Bb5 {[%clk 0:00:06]}  Kd5 {[%clk 0:00:35]} 49. Be8 {[%clk 0:00:05]}  Ke5 {[%clk 0:00:35]} 50. Bb5 {[%clk 0:00:06]}  Kf6 {[%clk 0:00:36]} 51. Be8 {[%clk 0:00:06]}  Kg7 {[%clk 0:00:36]} 52. Bb5 {[%clk 0:00:06]}  Kf7 {[%clk 0:00:37]} 53. Bc4+ {[%clk 0:00:06]}  Kg6 {[%clk 0:00:37]} 54. Bd3+ {[%clk 0:00:06]}  Kf6 {[%clk 0:00:38]} 55. Bc4 {[%clk 0:00:06]}  Bd2 {[%clk 0:00:38]} 56. Bd3 {[%clk 0:00:07]}  Be1 {[%clk 0:00:39]} 57. Bc4 {[%clk 0:00:07]}  Bd2 {[%clk 0:00:40]} 58. Bd3 {[%clk 0:00:08]}  Bc3 {[%clk 0:00:40]} 59. Bc4 {[%clk 0:00:08]}  Ke5 {[%clk 0:00:40]} 60. Bd3 {[%clk 0:00:08]}  Bd2 {[%clk 0:00:40]} 61. Bb5 {[%clk 0:00:08]}  Kd4 {[%clk 0:00:41]} 62. Be8 {[%clk 0:00:09]}  Ke3 {[%clk 0:00:42]} 63. Bb5 {[%clk 0:00:09]}  Kf2 {[%clk 0:00:42]} 64. Be8 {[%clk 0:00:09]}  Kg2 {[%clk 0:00:42]} 65. Bd7 {[%clk 0:00:10]}  Kh2 {[%clk 0:00:41]} 66. Kh5 {[%clk 0:00:10]}  Kg3 {[%clk 0:00:40]} 67. Bg4 {[%clk 0:00:10]}  Bb4 {[%clk 0:00:35]} 68. Kxh6 {[%clk 0:00:07]}  Bd2 {[%clk 0:00:36]} 69. Kg6 {[%clk 0:00:07]}  Kh4 {[%clk 0:00:36]} 70. Kf5 {[%clk 0:00:06]}  Bb4 {[%clk 0:00:37]} 71. Kg6 {[%clk 0:00:06]}  Be1 {[%clk 0:00:38]} 72. Kf5 {[%clk 0:00:06]}  Bb4 {[%clk 0:00:39]} 73. Kg6 {[%clk 0:00:07]}  Be1 {[%clk 0:00:40]} 74. Kf5 {[%clk 0:00:07]}  Bb4 {[%clk 0:00:41]} 1/2-1/2

[Event "November 21 Early 2023"]
[Site "https://www.chess.com"]
[Date "2023.11.21"]
[Round "8"]
[White "Koellner, Ruben Gideon"]
[Black "Kazmin_Semyon"]
[Result "1/2-1/2"]
[Board "73"]
[TimeControl "180+1"]
[WhiteFideId "12993093"]
[WhiteElo "2347"]
[BlackElo "2517"]
[WhiteTeam "GER"]
[WhiteClock "0:00:24"]
[BlackClock "0:00:03"]

1. d4 {[%clk 0:03:00]}  Nf6 {[%clk 0:02:56]} 2. Nf3 {[%clk 0:03:00]}  d5 {[%clk 0:02:56]} 3. e3 {[%clk 0:02:58]}  b6 {[%clk 0:02:54]} 4. Nbd2 {[%clk 0:02:56]}  Bb7 {[%clk 0:02:55]} 5. Bd3 {[%clk 0:02:41]}  e6 {[%clk 0:02:54]} 6. Ne5 {[%clk 0:02:41]}  Nbd7 {[%clk 0:02:53]} 7. f4 {[%clk 0:02:39]}  c5 {[%clk 0:02:51]} 8. c3 {[%clk 0:02:38]}  a5 {[%clk 0:02:50]} 9. O-O {[%clk 0:02:24]}  Ba6 {[%clk 0:02:46]} 10. Bxa6 {[%clk 0:02:23]}  Rxa6 {[%clk 0:02:47]} 11. Qf3 {[%clk 0:02:20]}  Bd6 {[%clk 0:02:43]} 12. g4 {[%clk 0:02:19]}  O-O {[%clk 0:02:11]} 13. g5 {[%clk 0:02:18]}  Ne8 {[%clk 0:02:11]} 14. a4 {[%clk 0:02:11]}  f6 {[%clk 0:02:04]} 15. gxf6 {[%clk 0:02:11]}  Nexf6 {[%clk 0:02:00]} 16. Qh3 {[%clk 0:02:10]}  Qe8 {[%clk 0:01:46]} 17. Kh1 {[%clk 0:02:09]}  Bxe5 {[%clk 0:01:40]} 18. dxe5 {[%clk 0:01:59]}  Ne4 {[%clk 0:01:22]} 19. Nxe4 {[%clk 0:01:58]}  dxe4 {[%clk 0:01:22]} 20. Bd2 {[%clk 0:01:58]}  c4 {[%clk 0:01:20]} 21. Be1 {[%clk 0:01:48]}  Rf5 {[%clk 0:01:19]} 22. Rd1 {[%clk 0:01:47]}  Nc5 {[%clk 0:01:18]} 23. Rd4 {[%clk 0:01:47]}  Qxa4 {[%clk 0:00:55]} 24. Rd8+ {[%clk 0:01:46]}  Rf8 {[%clk 0:00:44]} 25. Rxf8+ {[%clk 0:01:45]}  Kxf8 {[%clk 0:00:45]} 26. f5 {[%clk 0:01:45]}  Kg8 {[%clk 0:00:28]} 27. fxe6 {[%clk 0:01:41]}  Qe8 {[%clk 0:00:20]} 28. Qf5 {[%clk 0:01:39]}  Ra7 {[%clk 0:00:11]} 29. Bh4 {[%clk 0:01:33]}  Nxe6 {[%clk 0:00:10]} 30. Qxe4 {[%clk 0:01:32]}  Qa8 {[%clk 0:00:10]} 31. Qxa8+ {[%clk 0:01:28]}  Rxa8 {[%clk 0:00:11]} 32. Rd1 {[%clk 0:01:25]}  Rb8 {[%clk 0:00:03]} 33. Rd6 {[%clk 0:01:24]}  Kf7 {[%clk 0:00:03]} 34. Rd7+ {[%clk 0:01:24]}  Kg6 {[%clk 0:00:03]} 35. Re7 {[%clk 0:01:13]}  Nc5 {[%clk 0:00:04]} 36. e6 {[%clk 0:01:09]}  Kf5 {[%clk 0:00:04]} 37. Rxg7 {[%clk 0:01:06]}  Kxe6 {[%clk 0:00:04]} 38. Rxh7 {[%clk 0:01:06]}  b5 {[%clk 0:00:03]} 39. Bg3 {[%clk 0:01:04]}  Rd8 {[%clk 0:00:03]} 40. Rh5 {[%clk 0:01:03]}  Rc8 {[%clk 0:00:02]} 41. e4 {[%clk 0:01:01]}  b4 {[%clk 0:00:02]} 42. Rh6+ {[%clk 0:00:56]}  Kf7 {[%clk 0:00:02]} 43. e5 {[%clk 0:00:54]}  bxc3 {[%clk 0:00:03]} 44. bxc3 {[%clk 0:00:54]}  a4 {[%clk 0:00:03]} 45. Rh7+ {[%clk 0:00:55]}  Ke6 {[%clk 0:00:04]} 46. Ra7 {[%clk 0:00:56]}  Rd8 {[%clk 0:00:02]} 47. Bf2 {[%clk 0:00:54]}  Ne4 {[%clk 0:00:02]} 48. Bd4 {[%clk 0:00:54]}  Rg8 {[%clk 0:00:01]} 49. Rxa4 {[%clk 0:00:50]}  Nd2 {[%clk 0:00:02]} 50. h4 {[%clk 0:00:47]}  Nf3 {[%clk 0:00:02]} 51. Rxc4 {[%clk 0:00:44]}  Nxh4 {[%clk 0:00:02]} 52. Rc6+ {[%clk 0:00:42]}  Kd7 {[%clk 0:00:03]} 53. Rd6+ {[%clk 0:00:38]}  Kc7 {[%clk 0:00:03]} 54. Kh2 {[%clk 0:00:38]}  Nf3+ {[%clk 0:00:02]} 55. Kh3 {[%clk 0:00:39]}  Ng5+ {[%clk 0:00:02]} 56. Kh4 {[%clk 0:00:38]}  Ne4 {[%clk 0:00:01]} 57. Rh6 {[%clk 0:00:37]}  Kd7 {[%clk 0:00:02]} 58. e6+ {[%clk 0:00:36]}  Ke7 {[%clk 0:00:02]} 59. Be3 {[%clk 0:00:36]}  Nd6 {[%clk 0:00:02]} 60. Bc5 {[%clk 0:00:35]}  Rc8 {[%clk 0:00:02]} 61. Rh7+ {[%clk 0:00:34]}  Kxe6 {[%clk 0:00:03]} 62. Rh6+ {[%clk 0:00:35]}  Kf5 {[%clk 0:00:02]} 63. Bxd6 {[%clk 0:00:34]}  Rc4+ {[%clk 0:00:03]} 64. Kh3 {[%clk 0:00:34]}  Rxc3+ {[%clk 0:00:03]} 65. Bg3 {[%clk 0:00:34]}  Rd3 {[%clk 0:00:03]} 66. Rh5+ {[%clk 0:00:35]}  Ke4 {[%clk 0:00:03]} 67. Rh4+ {[%clk 0:00:36]}  Kf5 {[%clk 0:00:03]} 68. Rh8 {[%clk 0:00:36]}  Rb3 {[%clk 0:00:02]} 69. Rf8+ {[%clk 0:00:37]}  Ke6 {[%clk 0:00:02]} 70. Rf4 {[%clk 0:00:36]}  Rc3 {[%clk 0:00:01]} 71. Kg4 {[%clk 0:00:37]}  Rb3 {[%clk 0:00:02]} 72. Re4+ {[%clk 0:00:37]}  Kd5 {[%clk 0:00:02]} 73. Re5+ {[%clk 0:00:38]}  Kd4 {[%clk 0:00:02]} 74. Re8 {[%clk 0:00:38]}  Kd5 {[%clk 0:00:02]} 75. Bf4 {[%clk 0:00:39]}  Rb7 {[%clk 0:00:01]} 76. Kf5 {[%clk 0:00:40]}  Rf7+ {[%clk 0:00:02]} 77. Kg4 {[%clk 0:00:39]}  Rg7+ {[%clk 0:00:03]} 78. Kf3 {[%clk 0:00:40]}  Rf7 {[%clk 0:00:03]} 79. Re5+ {[%clk 0:00:40]}  Kd4 {[%clk 0:00:03]} 80. Re1 {[%clk 0:00:41]}  Kd5 {[%clk 0:00:04]} 81. Rd1+ {[%clk 0:00:42]}  Kc4 {[%clk 0:00:04]} 82. Ke4 {[%clk 0:00:42]}  Rh7 {[%clk 0:00:05]} 83. Rc1+ {[%clk 0:00:42]}  Kb5 {[%clk 0:00:06]} 84. Be5 {[%clk 0:00:43]}  Rd7 {[%clk 0:00:04]} 85. Bd4 {[%clk 0:00:42]}  Kb4 {[%clk 0:00:03]} 86. Kd3 {[%clk 0:00:41]}  Kb5 {[%clk 0:00:04]} 87. Rb1+ {[%clk 0:00:41]}  Kc6 {[%clk 0:00:04]} 88. Kc4 {[%clk 0:00:42]}  Rb7 {[%clk 0:00:03]} 89. Rh1 {[%clk 0:00:41]}  Rd7 {[%clk 0:00:03]} 90. Bc5 {[%clk 0:00:40]}  Rd2 {[%clk 0:00:02]} 91. Rh6+ {[%clk 0:00:40]}  Kc7 {[%clk 0:00:02]} 92. Kb5 {[%clk 0:00:39]}  Rb2+ {[%clk 0:00:02]} 93. Bb4 {[%clk 0:00:39]}  Kd7 {[%clk 0:00:03]} 94. Rd6+ {[%clk 0:00:39]}  Ke8 {[%clk 0:00:03]} 95. Rd4 {[%clk 0:00:39]}  Kf7 {[%clk 0:00:04]} 96. Kc6 {[%clk 0:00:37]}  Ke6 {[%clk 0:00:04]} 97. Re4+ {[%clk 0:00:37]}  Kf5 {[%clk 0:00:05]} 98. Rh4 {[%clk 0:00:38]}  Kg5 {[%clk 0:00:05]} 99. Be7+ {[%clk 0:00:38]}  Kf5 {[%clk 0:00:05]} 100. Rh1 {[%clk 0:00:35]}  Ke6 {[%clk 0:00:05]} 101. Re1+ {[%clk 0:00:35]}  Kf5 {[%clk 0:00:06]} 102. Bc5 {[%clk 0:00:35]}  Rd2 {[%clk 0:00:06]} 103. Re8 {[%clk 0:00:34]}  Kf6 {[%clk 0:00:06]} 104. Kb5 {[%clk 0:00:32]}  Rc2 {[%clk 0:00:05]} 105. Bd4+ {[%clk 0:00:29]}  Kf5 {[%clk 0:00:05]} 106. Kb4 {[%clk 0:00:28]}  Rc6 {[%clk 0:00:04]} 107. Bc5 {[%clk 0:00:28]}  Re6 {[%clk 0:00:03]} 108. Rf8+ {[%clk 0:00:27]}  Ke4 {[%clk 0:00:04]} 109. Rf1 {[%clk 0:00:28]}  Rh6 {[%clk 0:00:03]} 110. Kc4 {[%clk 0:00:27]}  Rh2 {[%clk 0:00:03]} 111. Re1+ {[%clk 0:00:27]}  Kf3 {[%clk 0:00:03]} 112. Bd6 {[%clk 0:00:25]}  Rd2 {[%clk 0:00:02]} 113. Be5 {[%clk 0:00:24]}  Rd7 {[%clk 0:00:03]} 114. Bd4 {[%clk 0:00:24]}  Kf4 {[%clk 0:00:03]} 1/2-1/2

[Event "November 21 Early 2023"]
[Site "https://www.chess.com"]
[Date "2023.11.21"]
[Round "8"]
[White "Arhan_Anand"]
[Black "Eugene, Floryan"]
[Result "1-0"]
[Board "75"]
[TimeControl "180+1"]
[BlackFideId "20694784"]
[WhiteElo "2650"]
[BlackElo "2369"]
[BlackTeam "FRA"]
[WhiteClock "0:01:03"]
[BlackClock "0:00:00"]

1. Nf3 {[%clk 0:03:00]}  g6 {[%clk 0:02:58]} 2. e4 {[%clk 0:03:00]}  Bg7 {[%clk 0:02:57]} 3. d4 {[%clk 0:03:00]}  c6 {[%clk 0:02:58]} 4. Bd3 {[%clk 0:02:59]}  d5 {[%clk 0:02:58]} 5. e5 {[%clk 0:03:00]}  f6 {[%clk 0:02:54]} 6. exf6 {[%clk 0:02:59]}  exf6 {[%clk 0:02:54]} 7. O-O {[%clk 0:02:59]}  Ne7 {[%clk 0:02:55]} 8. Re1 {[%clk 0:02:58]}  O-O {[%clk 0:02:55]} 9. c4 {[%clk 0:02:58]}  Nf5 {[%clk 0:02:50]} 10. cxd5 {[%clk 0:02:56]}  cxd5 {[%clk 0:02:51]} 11. Nc3 {[%clk 0:02:57]}  Nc6 {[%clk 0:02:47]} 12. Bc2 {[%clk 0:02:55]}  Kh8 {[%clk 0:02:45]} 13. Bb3 {[%clk 0:02:55]}  Nce7 {[%clk 0:02:38]} 14. Qe2 {[%clk 0:02:44]}  b6 {[%clk 0:02:32]} 15. g4 {[%clk 0:02:42]}  a5 {[%clk 0:02:12]} 16. gxf5 {[%clk 0:02:39]}  Nxf5 {[%clk 0:02:12]} 17. Bxd5 {[%clk 0:02:38]}  Ra7 {[%clk 0:02:12]} 18. Bf4 {[%clk 0:02:36]}  Ba6 {[%clk 0:02:05]} 19. Qd2 {[%clk 0:02:28]}  Rd7 {[%clk 0:02:01]} 20. Be6 {[%clk 0:02:10]}  Nxd4 {[%clk 0:01:59]} 21. Nxd4 {[%clk 0:02:10]}  Rxd4 {[%clk 0:02:00]} 22. Qe3 {[%clk 0:02:10]}  Rd3 {[%clk 0:01:44]} 23. Qe4 {[%clk 0:02:02]}  f5 {[%clk 0:01:44]} 24. Qg2 {[%clk 0:01:59]}  Qf6 {[%clk 0:01:02]} 25. Be5 {[%clk 0:01:55]}  Qh4 {[%clk 0:00:54]} 26. Bxg7+ {[%clk 0:01:33]}  Kxg7 {[%clk 0:00:53]} 27. Rad1 {[%clk 0:01:34]}  Rxd1 {[%clk 0:00:49]} 28. Rxd1 {[%clk 0:01:32]}  f4 {[%clk 0:00:49]} 29. Rd7+ {[%clk 0:01:29]}  Kh8 {[%clk 0:00:29]} 30. Qd5 {[%clk 0:01:16]}  f3 {[%clk 0:00:22]} 31. Ne4 {[%clk 0:01:06]}  Rf6 {[%clk 0:00:02]} 32. Qe5 {[%clk 0:01:03]}  Qg5+ {[%clk 0:00:00]} 33. Qxg5 {[%clk 0:01:03]} 1-0

[Event "November 21 Early 2023"]
[Site "https://www.chess.com"]
[Date "2023.11.21"]
[Round "8"]
[White "Mazurkiewicz, Michal"]
[Black "Belov, Alexei"]
[Result "1-0"]
[Board "80"]
[TimeControl "180+1"]
[WhiteFideId "1124943"]
[BlackFideId "4128206"]
[WhiteElo "2124"]
[BlackElo "2625"]
[WhiteTeam "POL"]
[BlackTeam "RUS"]
[WhiteClock "0:00:06"]
[BlackClock "0:00:14"]

1. e4 {[%clk 0:02:59]}  e6 {[%clk 0:03:00]} 2. d3 {[%clk 0:02:59]}  d5 {[%clk 0:02:59]} 3. Nd2 {[%clk 0:02:59]}  Nf6 {[%clk 0:02:59]} 4. Ngf3 {[%clk 0:03:00]}  Nc6 {[%clk 0:02:59]} 5. c3 {[%clk 0:03:00]}  e5 {[%clk 0:02:59]} 6. g3 {[%clk 0:02:55]}  a5 {[%clk 0:02:57]} 7. exd5 {[%clk 0:02:50]}  Qxd5 {[%clk 0:02:49]} 8. Qb3 {[%clk 0:02:49]}  Bf5 {[%clk 0:02:33]} 9. Ne4 {[%clk 0:01:32]}  Bxe4 {[%clk 0:02:25]} 10. dxe4 {[%clk 0:01:30]}  Qxe4+ {[%clk 0:02:25]} 11. Be2 {[%clk 0:01:30]}  O-O-O {[%clk 0:02:19]} 12. Qc4 {[%clk 0:00:39]}  Qxc4 {[%clk 0:02:15]} 13. Bxc4 {[%clk 0:00:39]}  Nd5 {[%clk 0:02:15]} 14. Ng5 {[%clk 0:00:33]}  Rd7 {[%clk 0:02:07]} 15. Nxf7 {[%clk 0:00:34]}  Rxf7 {[%clk 0:02:00]} 16. Bxd5 {[%clk 0:00:34]}  Rf6 {[%clk 0:02:00]} 17. Bg5 {[%clk 0:00:29]}  Rd6 {[%clk 0:01:59]} 18. O-O-O {[%clk 0:00:29]}  Be7 {[%clk 0:01:57]} 19. Be3 {[%clk 0:00:23]}  Rhd8 {[%clk 0:01:52]} 20. Be4 {[%clk 0:00:24]}  h6 {[%clk 0:01:47]} 21. Rxd6 {[%clk 0:00:24]}  cxd6 {[%clk 0:01:41]} 22. Bb6 {[%clk 0:00:21]}  Rf8 {[%clk 0:01:39]} 23. Rd1 {[%clk 0:00:20]}  Nb8 {[%clk 0:01:28]} 24. f3 {[%clk 0:00:19]}  a4 {[%clk 0:01:23]} 25. a3 {[%clk 0:00:19]}  Nd7 {[%clk 0:01:22]} 26. Be3 {[%clk 0:00:18]}  Nc5 {[%clk 0:01:22]} 27. Bxc5 {[%clk 0:00:16]}  dxc5 {[%clk 0:01:22]} 28. g4 {[%clk 0:00:17]}  Rd8 {[%clk 0:01:19]} 29. Rxd8+ {[%clk 0:00:08]}  Bxd8 {[%clk 0:01:16]} 30. Bc2 {[%clk 0:00:09]}  b5 {[%clk 0:01:13]} 31. c4 {[%clk 0:00:09]}  bxc4 {[%clk 0:01:10]} 32. Bxa4 {[%clk 0:00:10]}  Ba5 {[%clk 0:01:06]} 33. Kc2 {[%clk 0:00:10]}  Kc7 {[%clk 0:01:00]} 34. Bb5 {[%clk 0:00:10]}  Kd6 {[%clk 0:00:53]} 35. Bxc4 {[%clk 0:00:10]}  g5 {[%clk 0:00:51]} 36. Kd3 {[%clk 0:00:08]}  Be1 {[%clk 0:00:45]} 37. Ke4 {[%clk 0:00:08]}  Bd2 {[%clk 0:00:45]} 38. a4 {[%clk 0:00:08]}  Bc1 {[%clk 0:00:36]} 39. a5 {[%clk 0:00:07]}  Bxb2 {[%clk 0:00:35]} 40. a6 {[%clk 0:00:08]}  Kc7 {[%clk 0:00:33]} 41. Kf5 {[%clk 0:00:08]}  Kb6 {[%clk 0:00:30]} 42. Kg6 {[%clk 0:00:08]}  Bc1 {[%clk 0:00:29]} 43. Kxh6 {[%clk 0:00:08]}  Bf4 {[%clk 0:00:29]} 44. h3 {[%clk 0:00:07]}  Ka7 {[%clk 0:00:30]} 45. Kh5 {[%clk 0:00:06]}  Kb6 {[%clk 0:00:29]} 46. h4 {[%clk 0:00:07]}  gxh4 {[%clk 0:00:28]} 47. Kxh4 {[%clk 0:00:08]}  Bh6 {[%clk 0:00:20]} 48. g5 {[%clk 0:00:08]}  Bf8 {[%clk 0:00:19]} 49. Kg4 {[%clk 0:00:07]}  Bd6 {[%clk 0:00:16]} 50. Kf5 {[%clk 0:00:06]}  Bb8 {[%clk 0:00:14]} 51. g6 {[%clk 0:00:06]} 1-0

[Event "November 21 Early 2023"]
[Site "https://www.chess.com"]
[Date "2023.11.21"]
[Round "8"]
[White "Vestby-Ellingsen, Mads"]
[Black "Miszler, Levente"]
[Result "1-0"]
[Board "83"]
[TimeControl "180+1"]
[WhiteFideId "1520857"]
[BlackFideId "763276"]
[WhiteElo "2241"]
[BlackElo "2186"]
[WhiteTeam "NOR"]
[BlackTeam "HUN"]
[WhiteClock "0:01:41"]
[BlackClock "0:01:53"]

1. e4 {[%clk 0:03:00]}  e6 {[%clk 0:02:59]} 2. d4 {[%clk 0:03:00]}  d5 {[%clk 0:03:00]} 3. Nc3 {[%clk 0:03:00]}  Nf6 {[%clk 0:03:01]} 4. Bd3 {[%clk 0:03:01]}  c5 {[%clk 0:02:58]} 5. exd5 {[%clk 0:03:01]}  cxd4 {[%clk 0:02:58]} 6. Bb5+ {[%clk 0:03:01]}  Bd7 {[%clk 0:02:58]} 7. Bxd7+ {[%clk 0:03:01]}  Qxd7 {[%clk 0:02:57]} 8. Qxd4 {[%clk 0:03:01]}  exd5 {[%clk 0:02:57]} 9. Nf3 {[%clk 0:03:01]}  Nc6 {[%clk 0:02:57]} 10. Qd1 {[%clk 0:03:01]}  Bb4 {[%clk 0:02:56]} 11. O-O {[%clk 0:03:01]}  Bxc3 {[%clk 0:02:57]} 12. bxc3 {[%clk 0:03:01]}  O-O {[%clk 0:02:57]} 13. Bg5 {[%clk 0:02:59]}  Ne4 {[%clk 0:02:57]} 14. c4 {[%clk 0:02:58]}  Nxg5 {[%clk 0:02:57]} 15. Nxg5 {[%clk 0:02:57]}  Qf5 {[%clk 0:02:52]} 16. Qxd5 {[%clk 0:02:47]}  Qxd5 {[%clk 0:02:49]} 17. cxd5 {[%clk 0:02:47]}  Nb4 {[%clk 0:02:50]} 18. c4 {[%clk 0:02:46]}  Rac8 {[%clk 0:02:50]} 19. Rfc1 {[%clk 0:02:41]}  b5 {[%clk 0:02:49]} 20. cxb5 {[%clk 0:02:39]}  Nxd5 {[%clk 0:02:48]} 21. Ne4 {[%clk 0:02:35]}  Rfd8 {[%clk 0:02:38]} 22. a4 {[%clk 0:02:26]}  f5 {[%clk 0:02:37]} 23. Nc5 {[%clk 0:02:21]}  Nf4 {[%clk 0:02:29]} 24. Kf1 {[%clk 0:02:20]}  Rd5 {[%clk 0:02:24]} 25. Na6 {[%clk 0:02:11]}  Rcd8 {[%clk 0:02:17]} 26. g3 {[%clk 0:02:09]}  Nd3 {[%clk 0:02:17]} 27. Rc7 {[%clk 0:02:06]}  Rd4 {[%clk 0:02:16]} 28. Rxa7 {[%clk 0:01:53]}  Nb2 {[%clk 0:02:03]} 29. b6 {[%clk 0:01:46]}  Rd2 {[%clk 0:02:04]} 30. b7 {[%clk 0:01:41]}  Nd3 {[%clk 0:01:53]} 31. Ra8 {[%clk 0:01:41]} 1-0